[Event "French-ch U16-U18 2024"]
[Site "Agen"]
[Date "2024.04.14"]
[Round "1.18"]
[White "Belkaid, Sohan"]
[Black "Journault, Paul"]
[Result "1-0"]
[ECO "B11"]
[WhiteElo "2412"]
[BlackElo "1765"]
[Annotator "TA"]
[PlyCount "47"]
[EventDate "2024.04.14"]
[EventType "swiss"]
[EventCountry "FRA"]
[SourceTitle "playchess.com"]
[Source "ChessBase"]
[SourceQuality "1"]
[TimeControl "5400+30"]

{[%evp 9,47,15,68,51,62,58,67,71,72,64,65,60,81,82,80,67,91,79,104,76,97,99,105,41,83,73,112,91,96,95,114,108,271,229,730,728,1222,1030,1014,951]} 1. e4 {[%emt 0:00:10]} c6 {[%emt 0:00:03]} 2. Nc3 {[%emt 0:00:20][%cal Bb1c3,Bc3e2,Be2f4][%mdl 32]} d5 {[%emt 0:00:12]} 3. Nf3 {[%emt 0:00:16]} Nf6 {[%emt 0:00:14]} 4. e5 {[%emt 0:00:52]} Ne4 {[%emt 0:00:05]} 5. Ne2 {[%emt 0:00:11]} Bg4 {[%emt 0:05:21]} ({Black should play} 5... Qb6 $11 6. d4 e6) 6. Nfg1 $14 {[%emt 0:01:20] f3 would now be deadly.} Bc8 {[%emt 0:06:55]} 7. d3 {[%emt 0:10:10][%cal Bd2d3,Bd3d4][%mdl 32]} Nc5 {[%emt 0:00:21]} 8. d4 {[%emt 0:00:15] White is slightly better.} Nca6 {[%emt 0:00:34]} 9. c3 {[%emt 0:04:40]} c5 {[%emt 0:05:31]} 10. Nf4 {[%emt 0:08:15]} e6 {[%emt 0:03:19]} 11. Nf3 {[%emt 0:00:34] White has more active pieces.} Be7 {[%emt 0:04:25]} 12. h4 {[%emt 0:04:38]} Qb6 {[%emt 0:02:54]} 13. Bd3 {[%emt 0:04:02]} Nc6 {[%emt 0:04:54]} 14. a3 {[%emt 0:04:56]} cxd4 {[%emt 0:02:02]} 15. cxd4 {[%emt 0:00:25]} Bd7 {[%emt 0:00:24]} 16. Bc2 {[%emt 0:02:45]} (16. O-O $16) 16... Rc8 {[%emt 0:07:16]} 17. b4 {[%emt 0:04:38]} Nab8 {[%emt 0:03:16]} 18. Rb1 {[%emt 0:02:21]} a6 {[%emt 0:02:46]} 19. O-O {[%emt 0:08:59]} Na7 {[%emt 0:02:30]} 20. a4 {[%emt 0:02:47] Prevents Nb5} Bxb4 $2 {[%emt 0:04:51] Loses the game.} (20... O-O $16 21. Ng5 Bxg5) 21. Nh5 {[%emt 0:02:24]} Kf8 $2 {[%emt 0:07:48]} (21... h6 22. Nxg7+ Kd8) 22. Ng5 $18 {[%emt 0:01:49] White is clearly winning.} g6 {[%emt 0:13:13] [#]} 23. Qf3 $1 {[%emt 0:01:24][%csl Gg5][%cal Rf3f7]} f5 {[%emt 0:04:16] [#]} 24. Rxb4 $1 {[%emt 0:00:51][%mdl 512] Weighted Error Value: White=0.15 (very precise) /Black=0.31.  Loses game:     	---       	Black=1      Mistake:       	White=1     	Black=1      Inaccurate:     	---       	Black=3      OK:         	White=4     	Black=5      Best:        	White=1     	---} 1-0

[Event "French-ch U16-U18 2024"]
[Site "Agen"]
[Date "2024.04.14"]
[Round "1.19"]
[White "Constant, Theo"]
[Black "Bat, Bilguun"]
[Result "0-1"]
[ECO "B52"]
[WhiteElo "1759"]
[BlackElo "2360"]
[Annotator "TA"]
[PlyCount "90"]
[EventDate "2024.04.14"]
[EventType "swiss"]
[EventCountry "FRA"]
[SourceTitle "playchess.com"]
[Source "ChessBase"]
[SourceQuality "1"]
[TimeControl "5400+30"]

{[%evp 14,90,11,7,22,0,0,0,6,6,5,4,8,0,0,-6,0,0,0,0,0,-15,-11,-47,-47,-56,-56,-52,-24,-62,-16,-38,-46,-29,-26,-75,-65,-120,-108,-281,-270,-305,-309,-427,-426,-448,-453,-459,-445,-448,-427,-523,-503,-524,-415,-458,-467,-418,-339,-363,-310,-600,-592,-912,-892,-850,-708,-972,-970,-954,-939,-1761,-1752,-1871,-773,-1190,-773,-766,-766]} 1. e4 {[%emt 0:00:05]} c5 {[%emt 0:00:54]} 2. Nf3 {[%emt 0:00:13]} d6 {[%emt 0:00:24]} 3. Bb5+ {[%emt 0:00:12]} Bd7 {[%emt 0:00:33]} 4. Bxd7+ {[%emt 0:00:13]} Nxd7 {[%emt 0:00:14]} 5. O-O {[%emt 0:00:12]} Ngf6 {[%emt 0:00:30]} 6. d3 {[%emt 0:01:58]} e6 {[%emt 0:01:36]} 7. Re1 {[%emt 0:04:18]} Be7 {[%emt 0:01:05]} 8. c3 {[%emt 0:01:11]} O-O {[%emt 0:02:34]} 9. d4 {[%emt 0:03:33]} cxd4 {[%emt 0:01:25]} 10. cxd4 {[%emt 0:00:05]} Nb6 {[%emt 0:04:48][%cal Bd7b6,Bb6c4,Bc4a5,Ba5c6][%mdl 32] The position is equal.} 11. Nc3 {[%emt 0:03:50]} d5 {[%emt 0:01:30]} 12. e5 {[%emt 0:00:14]} Nfd7 {[%emt 0:00:14]} 13. Bf4 {[%emt 0:02:17]} Rc8 {[%emt 0:01:43]} 14. Rc1 {[%emt 0:00:36]} Nc4 {[%emt 0:03:43]} 15. b3 {[%emt 0:08:48]} Na5 {[%emt 0:00:47]} 16. Qd3 {[%emt 0:00:59]} Nc6 {[%emt 0:01:05]} 17. Re2 {[%emt 0:08:58]} a6 {[%emt 0:05:39]} 18. Qe3 {[%emt 0:03:49]} Qa5 {[%emt 0:04:51]} 19. Nb1 {[%emt 0:05:53]} Nb4 {[%emt 0:08:12]} 20. a3 {[%emt 0:11:41]} Nc6 {[%emt 0:04:51]} 21. b4 {[%emt 0:00:36]} Qd8 {[%emt 0:00:25]} (21... Qa4 $15) 22. Rec2 $11 {[%emt 0:00:56]} Nb6 {[%emt 0:00:23]} 23. Nbd2 {[%emt 0:00:14] Prevents Nc4} Qd7 {[%emt 0:00:46]} 24. h4 {[%emt 0:02:02]} (24. Qd3 $11) 24... a5 $17 {[%emt 0:02:21]} 25. b5 {[%emt 0:09:57]} (25. Bg5 $15) 25... Na7 {[%emt 0:01:26]} 26. Rxc8 $2 {[%emt 0:00:06] Now White is beyond hope.} (26. Bg5 $17 {keeps fighting.}) 26... Rxc8 $19 {[%emt 0:00:21]} 27. Rxc8+ {[%emt 0:00:05]} Qxc8 {[%emt 0:00:53]} 28. h5 {[%emt 0:09:46]} Qc1+ {[%emt 0:05:56]} ({But not} 28... Nxb5 29. Bg5 Bxa3 (29... Qc1+ $2 30. Kh2 $19) 30. h6 $19) 29. Kh2 {[%emt 0:00:04]} Qxa3 {[%emt 0:00:11]} (29... Nxb5 30. Bg5 Qxa3 (30... Bxa3 $2 31. h6 $19) 31. Bxe7 Qxe7 32. Qb3) 30. Qe2 {[%emt 0:00:54]} h6 {[%emt 0:00:23]} 31. g4 {[%emt 0:00:25]} Qb2 {[%emt 0:01:10]} 32. Qd3 {[%emt 0:00:41]} Qxb5 {[%emt 0:16:56]} 33. Qc2 {[%emt 0:00:21]} Qc6 {[%emt 0:00:22]} 34. Qd3 {[%emt 0:00:27]} Nc4 {[%emt 0:01:15]} 35. g5 {[%emt 0:00:06]} Nxd2 {[%emt 0:00:12]} 36. Qxd2 {[%emt 0:00:06]} Bb4 {[%emt 0:00:11]} 37. Qe3 {[%emt 0:00:26]} (37. Qd1 hxg5 38. Nxg5) 37... Qc3 {[%emt 0:00:21] Black is clearly winning.} 38. gxh6 {[%emt 0:01:37]} Qxe3 {[%emt 0:00:08]} 39. Bxe3 {[%emt 0:00:06]} gxh6 {[%emt 0:00:14]} 40. Bxh6 {[%emt 0:00:05][%mdl 4096] Endgame. KBN-KBN} a4 {[%emt 0:00:41] [#] ...a3 would now be deadly.} 41. Bc1 {[%emt 0:02:26]} a3 {[%emt 0:00:33]} 42. h6 {[%emt 0:00:07]} a2 {[%emt 0:00:17]} 43. Bb2 {[%emt 0:00:06]} Bf8 {[%emt 0:00:14]} (43... Nb5 $142 44. Ng5 Bc3 45. h7+ Kh8 46. Nxf7+ Kxh7 47. Ng5+ Kg8) 44. Ne1 {[%emt 0:00:30]} Bxh6 {[%emt 0:00:05][%cal Oh6c1] [#] aiming for ...Bc1!} 45. Nc2 {[%emt 0:00:10]} Bd2 {[%emt 0:00:07] Weighted Error Value: White=0.80/Black=0.43.  Loses game:     	White=1     	---        Mistake:       	White=3     	Black=1      Inaccurate:     	White=4     	Black=1      OK:         	White=11    	Black=14     Best:        	White=1     	Black=3} 0-1

[Event "French-ch U16-U18 2024"]
[Site "Agen"]
[Date "2024.04.14"]
[Round "1.20"]
[White "Fischler, Oscar"]
[Black "Ghazaryan, Gurgen"]
[Result "1-0"]
[ECO "E01"]
[WhiteElo "2275"]
[BlackElo "1750"]
[Annotator "TA"]
[PlyCount "160"]
[EventDate "2024.04.14"]
[EventType "swiss"]
[EventCountry "FRA"]
[SourceTitle "playchess.com"]
[Source "ChessBase"]
[SourceQuality "1"]
[TimeControl "5400+30"]

{[%evp 11,160,34,33,30,52,49,46,44,47,47,37,37,34,42,62,61,64,33,37,22,37,0,0,0,0,-15,-2,-22,75,76,86,86,87,66,58,31,20,13,12,21,29,18,72,8,50,47,53,8,8,1,1,0,0,0,14,15,12,18,18,0,25,9,9,10,8,8,18,15,30,3,16,3,66,4,4,0,4,4,4,4,39,39,39,39,39,39,39,39,39,39,39,39,39,39,39,39,70,70,52,8,8,7,27,0,27,27,27,27,70,70,70,70,70,70,70,0,70,0,70,70,117,70,117,110,110,110,110,110,117,117,117,117,117,117,117,96,96,96,96,96,96,96,96,96,96,96,96,96,96,8,8]} 1. d4 {[%emt 0:00:02]} Nf6 {[%emt 0:00:04]} 2. c4 {[%emt 0:00:01]} e6 {[%emt 0:00:07]} 3. g3 {[%emt 0:00:03]} d5 {[%emt 0:00:07]} 4. Bg2 {[%emt 0:00:03]} c6 {[%emt 0:00:09]} 5. Nf3 {[%emt 0:01:06]} Bb4+ {[%emt 0:00:06]} 6. Nbd2 {[%emt 0:02:03]} O-O {[%emt 0:00:21]} 7. O-O {[%emt 0:02:40]} Nbd7 {[%emt 0:00:21]} 8. Qc2 {[%emt 0:00:53]} Re8 {[%emt 0:00:32]} 9. Rd1 {[%emt 0:08:29] White is slightly better.} e5 {[%emt 0:03:37]} 10. dxe5 {[%emt 0:02:49]} Nxe5 {[%emt 0:00:05]} 11. Nxe5 {[%emt 0:05:53]} Rxe5 {[%emt 0:00:09]} 12. Nf3 {[%emt 0:02:19]} Re8 {[%emt 0:01:03]} 13. cxd5 {[%emt 0:00:56]} cxd5 {[%emt 0:00:05]} 14. Bf4 {[%emt 0:05:58] White is more active.} Qe7 {[%emt 0:08:58]} 15. Nd4 {[%emt 0:03:55]} Bg4 {[%emt 0:01:43][%cal Oa8c8]} 16. Bf1 {[%emt 0:08:01]} Rac8 {[%emt 0:11:15]} 17. Qd3 {[%emt 0:05:23]} Bc5 {[%emt 0:01:27]} 18. h3 {[%emt 0:07:43]} Bh5 {[%emt 0:11:08]} 19. Rac1 {[%emt 0:06:23]} Qe4 {[%emt 0:02:39]} (19... h6 $11) 20. Qxe4 $16 {[%emt 0:03:05]} Nxe4 {[%emt 0:00:40]} 21. g4 {[%emt 0:01:46]} Bg6 {[%emt 0:00:10]} 22. e3 {[%emt 0:00:24]} Bb6 {[%emt 0:03:07]} 23. Nf3 {[%emt 0:02:55]} f6 {[%emt 0:03:20]} 24. Bb5 {[%emt 0:02:18]} Rxc1 {[%emt 0:00:25]} 25. Rxc1 {[%emt 0:00:02]} Rd8 {[%emt 0:00:27]} 26. Nd4 {[%emt 0:03:42]} Nd6 {[%emt 0:02:29]} (26... Nc5 $11 {remains equal.}) 27. Ba4 {[%emt 0:02:12]} (27. Ne6 $16 Rc8 (27... Nxb5 $2 28. Nxd8 d4 29. Nxb7 $18) 28. Rxc8+ (28. Bxd6 $2 Rxc1+ 29. Kg2 Be4+ 30. f3 Bb1 $19) 28... Nxc8 29. Bd7) 27... Rc8 {[%emt 0:02:57]} 28. Rxc8+ {[%emt 0:00:03]} Nxc8 {[%emt 0:00:12]} 29. Bd7 {[%emt 0:02:14]} Bxd4 {[%emt 0:02:13]} 30. exd4 $11 {[%emt 0:00:24][%mdl 4096] Endgame. KBB-KBN} Nb6 {[%emt 0:00:09]} 31. Bb5 {[%emt 0:00:22]} Bb1 {[%emt 0:00:37]} 32. a3 {[%emt 0:00:30]} a6 {[%emt 0:00:51]} 33. Be2 {[%emt 0:00:32]} Nc4 {[%emt 0:01:05]} 34. Bc1 {[%emt 0:00:31]} Kf7 {[%emt 0:00:57]} 35. Kg2 {[%emt 0:01:41]} g5 {[%emt 0:01:00]} 36. Kg3 {[%emt 0:02:47]} h6 {[%emt 0:00:46]} 37. h4 {[%emt 0:01:10]} Nd6 {[%emt 0:00:41]} 38. f3 {[%emt 0:00:32]} Ke6 {[%emt 0:00:47]} 39. Bd2 {[%emt 0:01:19]} Nc4 {[%emt 0:00:25]} 40. Bc3 {[%emt 0:00:15]} Bc2 {[%emt 0:00:36]} 41. f4 {[%emt 0:01:59]} b6 {[%emt 0:01:52]} ({Black should try} 41... b5 $11) 42. fxg5 {[%emt 0:01:21]} ({White should play} 42. f5+ $14 Kf7 43. Bxc4 dxc4 44. d5) 42... fxg5 {[%emt 0:00:12]} 43. h5 {[%emt 0:00:23]} a5 {[%emt 0:00:23][%cal Ba6a5,Ba5a4][%mdl 32]} 44. Bxc4 {[%emt 0:04:08]} dxc4 {[%emt 0:00:13] [#] KB-KB} 45. d5+ $1 {[%emt 0:00:06]} Kf7 {[%emt 0:00:55]} (45... Kxd5 {simplifies} 46. Bg7 Ke6 47. Bxh6 Kf6) 46. d6 {[%emt 0:03:34][%cal Oc3g7] And now Bg7! would win.} Ba4 $1 {[%emt 0:00:19]} 47. Bd4 {[%emt 0:00:03]} Bd7 {[%emt 0:00:12]} 48. Bxb6 {[%emt 0:00:02]} a4 {[%emt 0:00:11]} 49. Bd4 {[%emt 0:00:52]} Bc8 {[%emt 0:00:08]} 50. Kf3 {[%emt 0:00:25]} Bd7 {[%emt 0:00:27]} 51. Ke4 {[%emt 0:02:21] [#] Hoping for Kd5.} Bxg4 {[%emt 0:00:37]} 52. Kd5 {[%emt 0:00:03] Kc6 would now be deadly.} Bf3+ {[%emt 0:00:35]} 53. Kc5 {[%emt 0:01:26] Threatens to win with Kb6.} Ke8 {[%emt 0:00:14]} 54. Bg7 {[%emt 0:00:32]} (54. Kxc4 $6 Bxh5 55. Bg7 g4 $11) 54... g4 {[%emt 0:01:03]} 55. Bxh6 {[%emt 0:01:19]} (55. Kxc4 g3 $11) 55... g3 {[%emt 0:00:09]} 56. Kb5 {[%emt 0:02:43]} Kd7 {[%emt 0:00:31]} 57. Kxa4 {[%emt 0:00:52]} Bxh5 {[%emt 0:00:20]} ({Much weaker is} 57... Kxd6 $6 58. Bf4+ Kd5 59. h6 $16 (59. Bxg3 Bxh5 60. Kb4 Be2 $14)) (57... g2 $5 58. Be3 $8 c3 59. bxc3 Bxh5 $11) 58. Bf4 {[%emt 0:00:55]} g2 {[%emt 0:00:16]} 59. Bh2 {[%emt 0:00:00]} g1=Q {[%emt 0:00:13]} 60. Bxg1 {[%emt 0:00:03]} Kxd6 {[%emt 0:00:07]} 61. Kb5 {[%emt 0:01:06]} Be2 {[%emt 0:00:27]} 62. Kb6 {[%emt 0:00:45]} Bd1 {[%emt 0:00:09]} 63. Kb5 {[%emt 0:00:17]} Be2 {[%emt 0:00:13] ( -> ...c3+)} 64. Kb6 {[%emt 0:00:01]} Bd1 {[%emt 0:44:54]} 65. Bd4 {[%emt 0:01:00]} Kd7 {[%emt 0:00:00]} ({Better is} 65... Ba4 $14) 66. Be5 {[%emt 0:00:54]} (66. Bc3 $16) 66... Kc8 {[%emt 0:00:00]} (66... Ke6 $1 $14) 67. Kb5 {[%emt 0:00:31]} Be2 {[%emt 0:00:00]} 68. Bc3 {[%emt 0:00:17]} Kb7 {[%emt 0:00:00]} 69. a4 {[%emt 0:00:03][%cal Ba3a4,Ba4a5,Ba5a6][%mdl 32]} Bd3 {[%emt 0:00:00]} 70. a5 {[%emt 0:00:06]} Be2 {[%emt 0:00:00]} 71. a6+ {[%emt 0:00:28]} Ka8 {[%emt 0:00:00]} 72. Kb6 {[%emt 0:00:03]} Bd3 {[%emt 0:00:00]} 73. a7 {[%emt 0:00:21]} Be2 {[%emt 0:00:00]} 74. Bd4 {[%emt 0:00:06]} Bd3 {[%emt 0:00:00]} 75. Ka5 {[%emt 0:00:05]} Be2 {[%emt 0:00:00]} 76. Kb4 {[%emt 0:00:03]} Bd3 {[%emt 0:00:00]} 77. Kc3 {[%emt 0:00:03]} Be2 {[%emt 0:00:00]} 78. Be3 {[%emt 0:00:04]} Bf1 {[%emt 0:00:00]} 79. Kd2 {[%emt 0:00:06]} Bd3 {[%emt 0:00:00]} ({Don't play} 79... Bg2 80. Bd4 $11) 80. b4 {[%emt 0:00:19]} (80. Bc5 $16) 80... cxb3 {[%emt 0:00:00][%mdl 32768] Weighted Error Value: White=0.11 (very precise) /Black=0.14 (very precise) .  Mistake:       	White=4     	Black=5      Inaccurate:     	White=7     	Black=5      OK:         	White=31    	Black=29     Best:        	White=3     	Black=5      Strong:       	---       	Black=1     . Loss on time!?} 1-0

[Event "French-ch U16-U18 2024"]
[Site "Agen"]
[Date "2024.04.15"]
[Round "2.1"]
[White "Sarishvili, Mariam"]
[Black "Famel, Diane"]
[Result "0-1"]
[ECO "A05"]
[WhiteElo "1719"]
[BlackElo "1888"]
[Annotator "NA RC"]
[PlyCount "98"]
[EventDate "2024.04.14"]
[EventType "swiss"]
[EventCountry "FRA"]
[SourceTitle "playchess.com"]
[Source "ChessBase"]
[SourceQuality "1"]
[TimeControl "5400+30"]

1. Nf3 {[%emt 0:00:03]} Nf6 {[%emt 0:09:17]} 2. g3 {[%emt 0:00:57]} g6 {[%emt 0:00:14]} 3. d3 {[%emt 0:00:04]} Bg7 {[%emt 0:01:30]} 4. Bg2 {[%emt 0:00:06]} O-O {[%emt 0:00:17]} 5. O-O {[%emt 0:00:10]} d6 {[%emt 0:01:32]} 6. e4 {[%emt 0:00:36]} c5 {[%emt 0:08:53]} 7. Nbd2 {[%emt 0:00:55]} Nc6 {[%emt 0:00:23]} 8. c3 {[%emt 0:01:35]} Ne8 {[%emt 0:05:48]} 9. Ne1 {[%emt 0:09:08] A05: Réti Opening: 1 Nf3 Nf6.} e6 {[%emt 0:04:21]} 10. f4 {[%emt 0:02:46]} d5 {[%emt 0:00:53]} 11. Nb3 {[%emt 0:08:36]} b6 {[%emt 0:06:46]} 12. e5 {[%emt 0:03:04]} Bb7 {[%emt 0:02:24]} 13. d4 {[%emt 0:02:37]} c4 {[%emt 0:05:51]} (13... cxd4 $14 14. Nxd4 Qd7) 14. Nd2 {[%emt 0:00:09]} Nc7 {[%emt 0:01:30]} 15. Nc2 {[%emt 0:02:37]} Rb8 {[%emt 0:04:52]} 16. h4 {[%emt 0:02:10]} b5 {[%emt 0:12:08]} 17. Nf3 {[%emt 0:02:59]} a5 {[%emt 0:02:15]} 18. Bd2 {[%emt 0:02:51]} Ba8 {[%emt 0:01:57]} 19. g4 {[%emt 0:03:43]} Ne7 $16 {[%emt 0:04:45]} 20. Kf2 {[%emt 0:02:44]} (20. h5 $16) 20... Na6 {[%emt 0:04:21]} 21. Bh3 {[%emt 0:04:24]} f5 {[%emt 0:02:54]} 22. exf6 {[%emt 0:03:33]} Rxf6 {[%emt 0:01:10]} 23. g5 {[%emt 0:00:39]} Rf8 {[%emt 0:00:06]} 24. Bxe6+ {[%emt 0:00:33]} Kh8 {[%emt 0:00:00]} 25. Rh1 {[%emt 0:01:19]} Qd6 {[%emt 0:02:35]} 26. Qe2 {[%emt 0:17:17]} Nc7 {[%emt 0:00:38]} 27. Bg4 {[%emt 0:03:10]} Rbe8 {[%emt 0:01:09]} 28. h5 {[%emt 0:01:40]} Nf5 {[%emt 0:02:18]} 29. Qf1 {[%emt 0:01:01]} Kg8 {[%emt 0:00:16]} 30. Bxf5 {[%emt 0:02:32]} Rxf5 {[%emt 0:04:27]} 31. hxg6 {[%emt 0:00:10]} hxg6 {[%emt 0:00:02]} 32. Qh3 {[%emt 0:01:38]} Kf8 {[%emt 0:03:51]} 33. Rae1 {[%emt 0:03:48]} Rxe1 {[%emt 0:01:38]} 34. Rxe1 {[%emt 0:00:10]} Ne6 {[%emt 0:02:14]} 35. Ne5 {[%emt 0:03:08]} Nxf4 {[%emt 0:01:05]} 36. Bxf4 {[%emt 0:00:25]} Rxf4+ {[%emt 0:00:03]} 37. Kg3 {[%emt 0:00:36]} Rf5 {[%emt 0:01:09]} 38. Kh4 {[%emt 0:03:27]} Bb7 {[%emt 0:02:21]} 39. Ne3 {[%emt 0:00:39]} Rf4+ {[%emt 0:00:28]} 40. N3g4 {[%emt 0:01:19]} Bc8 {[%emt 0:01:24]} 41. Qg3 {[%emt 0:02:43]} Rf5 {[%emt 0:00:37]} 42. Nf6 {[%emt 0:02:14]} Rxf6 {[%emt 0:00:10]} 43. Qh2 {[%emt 0:04:00]} Rf5 {[%emt 0:00:32]} 44. a3 {[%emt 0:02:32]} Bxe5 {[%emt 0:00:20]} 45. dxe5 {[%emt 0:00:18]} Qe7 {[%emt 0:00:21]} 46. Qg2 {[%emt 0:01:17]} Qh7+ {[%emt 0:00:07]} 47. Kg3 {[%emt 0:00:02]} Rxg5+ {[%emt 0:00:05]} 48. Kf3 {[%emt 0:00:04]} Qf7+ {[%emt 0:00:26]} 49. Ke3 {[%emt 0:00:09]} Rxg2 {[%emt 0:00:03]} 0-1

[Event "French-ch U16-U18 2024"]
[Site "Agen"]
[Date "2024.04.15"]
[Round "2.2"]
[White "Bat, Anu"]
[Black "Grisoni, Emma"]
[Result "1/2-1/2"]
[ECO "D05"]
[WhiteElo "1887"]
[BlackElo "1704"]
[Annotator "NA RC"]
[PlyCount "148"]
[EventDate "2024.04.14"]
[EventType "swiss"]
[EventCountry "FRA"]
[SourceTitle "playchess.com"]
[Source "ChessBase"]
[SourceQuality "1"]
[TimeControl "5400+30"]

1. d4 {[%emt 0:00:03]} Nf6 {[%emt 0:00:05]} 2. Nf3 {[%emt 0:00:06]} e6 {[%emt 0:00:10]} 3. e3 {[%emt 0:00:08]} b6 {[%emt 0:00:10]} 4. Bd3 {[%emt 0:00:14]} Bb7 {[%emt 0:00:14]} 5. Nbd2 {[%emt 0:00:35]} d5 {[%emt 0:00:37]} 6. O-O {[%emt 0:00:16]} Bd6 {[%emt 0:00:32]} 7. b3 {[%emt 0:00:22]} O-O {[%emt 0:00:40]} 8. Bb2 {[%emt 0:00:08]} Nbd7 {[%emt 0:00:44]} 9. Ne5 {[%emt 0:00:53] 9.c4 is the hot move.} Ne4 {[%emt 0:02:58]} 10. Nxe4 {[%emt 0:10:42] D05: Colle System with ...e6.} dxe4 {[%emt 0:00:17]} 11. Bb5 {[%emt 0:02:29]} Nf6 {[%emt 0:29:43]} 12. Be2 {[%emt 0:10:43]} c5 $146 {[%emt 0:07:51]} ({Predecessor:} 12... Qe7 13. c4 Rac8 14. Qc2 c5 15. a3 Rc7 16. Rfd1 Rfc8 17. Qd2 Rd8 18. dxc5 Rxc5 {1-0 Martirosyan,D (1925)-Cermak,M (2050) Mid Bohemia Region-chT 2223 2022 (2.2)}) 13. Nc4 {[%emt 0:10:11]} Be7 {[%emt 0:02:28]} 14. f3 {[%emt 0:08:31]} (14. a4 $11 {feels stronger.}) 14... cxd4 {[%emt 0:04:24]} 15. exd4 {[%emt 0:00:35]} Rc8 {[%emt 0:07:31]} 16. fxe4 {[%emt 0:05:46]} ({Better is} 16. a4 $11) 16... Bxe4 {[%emt 0:00:36]} 17. Bf3 {[%emt 0:03:12]} Bxf3 $11 {[%emt 0:10:52]} 18. Qxf3 {[%emt 0:00:42]} Nd5 {[%emt 0:00:55]} 19. Rf2 {[%emt 0:10:37]} (19. c3 $11) 19... b5 {[%emt 0:02:05]} 20. Ne3 {[%emt 0:02:04]} Nxe3 {[%emt 0:00:42]} 21. Qxe3 {[%emt 0:00:08]} Qd5 {[%emt 0:02:39]} 22. Kh1 {[%emt 0:04:43]} Bf6 {[%emt 0:00:16]} 23. Qd3 {[%emt 0:03:34]} Rfd8 {[%emt 0:01:22]} 24. Rd1 {[%emt 0:01:07]} Rd7 {[%emt 0:03:23]} 25. Rff1 {[%emt 0:08:45]} Rdc7 {[%emt 0:02:15]} 26. c3 {[%emt 0:00:24]} Rd7 {[%emt 0:00:54]} 27. Qg3 {[%emt 0:00:40]} Kh8 {[%emt 0:00:11]} 28. Rde1 {[%emt 0:00:54]} a5 {[%emt 0:01:22]} 29. Re2 {[%emt 0:03:09]} a4 {[%emt 0:03:27]} 30. bxa4 {[%emt 0:00:14]} bxa4 {[%emt 0:00:48]} 31. Ba1 {[%emt 0:00:50]} Rb7 {[%emt 0:00:47]} 32. Qd3 {[%emt 0:01:15]} Qb5 {[%emt 0:05:45]} 33. Qe4 {[%emt 0:01:29]} Qc6 {[%emt 0:01:22]} 34. Qxc6 {[%emt 0:00:49]} Rxc6 {[%emt 0:00:06]} 35. d5 {[%emt 0:03:36]} Rcb6 {[%emt 0:02:09]} 36. Ree1 {[%emt 0:00:07]} h6 {[%emt 0:06:01]} 37. c4 {[%emt 0:00:51]} Bxa1 {[%emt 0:00:49]} 38. Rxa1 {[%emt 0:00:04]} exd5 {[%emt 0:01:09]} 39. cxd5 {[%emt 0:00:04]} Rd6 {[%emt 0:00:25]} 40. Rf4 {[%emt 0:00:30]} Rxd5 {[%emt 0:01:06]} 41. Rxa4 {[%emt 0:00:07]} Rdb5 {[%emt 0:00:07]} 42. h3 {[%emt 0:00:21]} Rb1+ {[%emt 0:00:01]} 43. Rxb1 {[%emt 0:00:07]} Rxb1+ {[%emt 0:00:03]} 44. Kh2 {[%emt 0:00:05]} Rb7 {[%emt 0:00:04]} 45. Ra8+ {[%emt 0:00:30]} Kh7 {[%emt 0:00:06]} 46. a4 {[%emt 0:00:15]} Rb3 {[%emt 0:00:42]} 47. a5 {[%emt 0:00:44]} Ra3 {[%emt 0:00:19]} 48. a6 {[%emt 0:00:32]} Kg6 {[%emt 0:00:34]} 49. Ra7 {[%emt 0:01:09]} Kf6 {[%emt 0:00:49]} 50. h4 {[%emt 0:01:56]} h5 {[%emt 0:00:39]} 51. g3 {[%emt 0:00:46]} Ke6 {[%emt 0:00:29]} 52. Ra8 {[%emt 0:00:18]} Kf6 {[%emt 0:01:03]} 53. Kg2 {[%emt 0:03:14]} Ke7 {[%emt 0:00:15]} 54. a7 {[%emt 0:00:37]} Kf6 {[%emt 0:00:45]} 55. Kf2 {[%emt 0:00:31]} Kg6 {[%emt 0:01:10]} 56. Kg2 {[%emt 0:00:14]} Kf6 {[%emt 0:00:10]} 57. Rh8 {[%emt 0:00:17]} Rxa7 {[%emt 0:00:14]} 58. Rxh5 {[%emt 0:00:05]} Ra2+ {[%emt 0:00:41]} 59. Kh3 {[%emt 0:00:07]} g6 {[%emt 0:00:30]} 60. Rb5 {[%emt 0:00:09]} Ra3 {[%emt 0:00:11]} 61. Rb4 {[%emt 0:00:23]} Rc3 {[%emt 0:00:13]} 62. Kg4 {[%emt 0:00:10]} Rc5 {[%emt 0:00:12]} 63. Rb6+ {[%emt 0:01:14]} Kg7 {[%emt 0:00:04]} 64. Rd6 {[%emt 0:00:24]} Rb5 {[%emt 0:00:09]} 65. Rd4 {[%emt 0:00:39]} Rc5 {[%emt 0:00:08]} 66. Rf4 {[%emt 0:00:12]} Rb5 {[%emt 0:00:14]} 67. Kh3 {[%emt 0:00:29]} Rb3 {[%emt 0:00:19]} 68. Rg4 {[%emt 0:00:32]} Kh6 {[%emt 0:00:16]} 69. Rd4 {[%emt 0:00:24]} Rb5 {[%emt 0:00:28]} 70. g4 {[%emt 0:00:44]} Rb3+ {[%emt 0:00:05]} 71. Kg2 {[%emt 0:00:15]} Rb2+ {[%emt 0:00:04]} 72. Kf3 {[%emt 0:00:10]} Rb3+ {[%emt 0:00:05]} 73. Kg2 {[%emt 0:02:29]} Rb2+ {[%emt 0:00:06]} 74. Kg3 {[%emt 0:00:05]} Rb3+ {[%emt 0:00:05]} 1/2-1/2